Cogmind - Beta 15 @@@ ROGUE MODE // 2025.09.30 @ 16:09:30 Player: Kotyk77 Result: Destroyed by G-47 Trooper with Particle Gun Performance ------------- Evolutions (2) 1000 Regions Visited (5) 1000 Robots Destroyed (56) 280 Value Destroyed (1686) 1686 Prototype IDs (28) 560 Alien Tech Used (0) 0 Bonus (344) 344 TOTAL SCORE: 4870 Bonus ------- High Alert Combat Kills 44 Aligned with FarCom 300 Cogmind --------- Core Integrity 0/550 Matter 118/300 Energy 51/100 System Corruption 16% Temperature Cool (9) Movement Treading (225) Ox1 Location -8/Materials Parts ------- > --- POWER (1) -------- (None) > --- PROPULSION (3) --- Advanced Treads > --- UTILITY (5) ------ Large Storage Unit Signal Interpreter > --- WEAPON (2) ------- Pulse Rifle > --- INVENTORY (15) --- Ion Engine Light Ion Engine Improved Ion Engine Armored Huge Wheel Armored Huge Wheel Armored Huge Wheel Large Storage Unit Sensor Array Cloak of Protection Hacking Suite Peak State ------------ > --- POWER ------------ Ion Engine > --- PROPULSION ------- Carbon-fiber Leg Carbon-fiber Leg Carbon-fiber Leg > --- UTILITY ---------- Large Storage Unit Signal Interpreter Terrain Scanner Cloak of Protection Hacking Suite > --- WEAPON ----------- Gauss Rifle Heavy Missile Launcher > --- INVENTORY -------- Ion Engine Light Ion Engine Improved Ion Engine Armored Huge Wheel Armored Huge Wheel Armored Huge Wheel Large Storage Unit Sensor Array Utility Shielding Hardened Medium Armor Plating Hacking Suite Heavy Battle Rifle [Rating: 36] Favorites ----------- Power Ion Engine Engine Ion Engine Power Core Light Nuclear Core Propulsion Carbon-fiber Leg Leg Carbon-fiber Leg Wheel Compact Wheel Utility Large Storage Unit Device Seismic Detector Storage Large Storage Unit Processor Signal Interpreter Hackware Hacking Suite Protection Utility Shielding Weapon Light Assault Rifle Energy Gun Medium Laser Ballistic Gun Light Assault Rifle Launcher Grenade Launcher Special Weapon Mining Laser Build | -11 -10 -10 -10 -9 -8 ------- Run | Yrd Mat Min Exi Min Mat Slots Evolved 4 | . . . . . 4 Power . | . . . . . . Propulsion 1 | . . . . . 1 Utility 3 | . . . . . 3 Weapon . | . . . . . . Parts Attached 46 | 7 12 . 1 1 25 Power 6 | 1 2 . . . 3 Engine 5 | 1 2 . . . 2 Core 1 | . . . . . 1 Reactor . | . . . . . . Propulsion 14 | 2 1 . 1 . 10 Treads 1 | . . . . . 1 Leg 9 | . . . . . 9 Wheel 4 | 2 1 . 1 . . Hover . | . . . . . . Flight . | . . . . . . Utility 12 | 2 3 . . . 7 Device 4 | 1 1 . . . 2 Storage 2 | 1 1 . . . . Processor 1 | . 1 . . . . Hackware 1 | . . . . . 1 Protection 4 | . . . . . 4 Artifact . | . . . . . . Weapon 14 | 2 6 . . 1 5 Energy Gun 2 | 1 . . . . 1 Energy Cannon . | . . . . . . Ballistic Gun 7 | 1 3 . . 1 2 Ballistic Cannon . | . . . . . . Launcher 3 | . 1 . . . 2 Special Weapon 2 | . 2 . . . . Impact Weapon . | . . . . . . Slashing Weapon . | . . . . . . Piercing Weapon . | . . . . . . Special Melee Weapon . | . . . . . . Unidentified Prototypes . | . . . . . . Corrupted Parts 1 | . . . . . 1 System Corruption 6 | . . . . . 6 Parts Lost 19 | . 2 . . . 17 Power 2 | . . . . . 2 Propulsion 6 | . 1 . . . 5 Utility 5 | . . . . . 5 Weapon 6 | . 1 . . . 5 Highest Loss Streak 9 | . 1 . . . 9 To Critical Strikes . | . . . . . . Average Backups 12 | 2 11 15 15 15 12 Power 2 | . 1 2 2 2 2 Propulsion 2 | 1 3 3 2 2 2 Utility 4 | . 3 6 6 7 4 Weapon 2 | . 2 4 4 4 2 Tool/Special . | . . . . . . Unused Backups 14 | . 3 . . . 11 Power 3 | . 1 . . . 2 Propulsion 5 | . . . . . 5 Utility 4 | . . . . . 4 Weapon 2 | . 2 . . . . Tool/Special . | . . . . . . Average Slot Usage (%) 97 | . 99 100 100 100 96 Engine 11 | . 14 14 14 14 8 Leg 11 | . . . . . 24 Wheel 15 | . 27 28 28 28 1 Device 7 | . 13 . . . 6 Storage 11 | . 14 14 14 14 9 Processor 6 | . . 14 14 14 9 Hackware 2 | . . . . . 5 Protection 6 | . . . . . 13 Energy Gun 2 | . 4 . . . 1 Ballistic Gun 12 | . 14 14 14 14 9 Launcher 4 | . 6 . . . 3 Special Weapon 3 | . 1 14 14 14 2 Peak Build Rating 36 | 7 8 8 9 12 36 Average Rating 15 | 5 7 8 8 9 23 On Entrance 7 | . 7 8 8 9 12 Naked Turns . | . . . . . . Heaviest Build 45 | 14 30 27 27 30 45 Greatest Support 45 | 32 32 26 26 20 45 Greatest Overweight (x) 7 | . 1 1 1 1 7 Average Overweight (x) . | . . 1 1 1 . Largest Inventory Capacity 15 | 8 15 15 15 15 15 Average Capacity 14 | 7 13 15 15 15 15 Most Carried 15 | 6 15 15 15 15 15 Average Carried 13 | 2 11 15 14 15 14 Final Capacity 15 | 8 15 15 15 15 15 Final Carried 15 | 6 15 15 15 15 13 Class Distribution -------------------- 67% | Mutant 22% | Scavenger-Mutant 10% | Scavenger-Skirmisher Dominant Class ---------------- Mutant | -10/Materials Mutant | -10/Mines Mutant | -10/Exiles Mutant | -9/Mines Scavenger-Mutant | -8/Materials Resources | -11 -10 -10 -10 -9 -8 ----------- Run | Yrd Mat Min Exi Min Mat Matter Collected 1328 | 229 392 . . . 707 Remotely . | . . . . . . Salvage Created 1361 | 13 381 . . . 967 Parts 108 | 4 29 . . . 75 Haulers Intercepted 2 | . 1 . . . 1 Recyclers Shooed . | . . . . . . Parts Field Recycled . | . . . . . . Retrieved Matter . | . . . . . . Parts Self-Destructed . | . . . . . . Prevented . | . . . . . . Kills | -11 -10 -10 -10 -9 -8 ------- Run | Yrd Mat Min Exi Min Mat Combat Hostiles Destroyed 41 | . 13 . . . 28 Guns 15 | . 6 . . . 9 Cannons 1 | . 1 . . . . AOE 24 | . 5 . . . 19 Classes Destroyed 11 | 1 6 . . . 4 Worker 1 | . 1 . . . . Builder 6 | . 1 . . . 5 Tunneler 2 | 1 . . . . 1 Hauler 2 | . 1 . . . 1 Recycler 1 | . . . . . 1 Operator 2 | . 1 . . . 1 Watcher 1 | . . . . . 1 Swarmer 13 | . 6 . . . 7 Grunt 21 | . 7 . . . 14 Sentry 4 | . . . . . 4 Hunter 3 | . . . . . 3 Best Kill Streak 11 | 1 6 . . . 11 Combat Bots Only 10 | . 6 . . . 10 Max Kills in Single Turn 5 | 1 3 . . . 5 Gunslinging . | . . . . . . Exploded 5 | . 2 . . . 5 Melee . | . . . . . . Uniques/NPCs Destroyed . | . . . . . . Combat | -11 -10 -10 -10 -9 -8 -------- Run | Yrd Mat Min Exi Min Mat Hostile Shots Fired 274 | . 69 . . 3 202 Missed 83 | . 23 . . . 60 Hits 191 | . 46 . . 3 142 Projectile 191 | . 46 . . 3 142 Critical Strikes 5 | . 3 . . . 2 Part Disruptions 1 | . . . . . 1 Damage Taken 3106 | . 464 . . 21 2621 Core 690 | . 129 . . . 561 Absorbed by Shields . | . . . . . . Redirected to Shielding 48 | . . . . . 48 Regen/Repaired (Parts) 58 | . 58 . . . . Core Remaining (%) 74 | 100 . . . 48 . Volleys Fired 139 | 1 78 . . . 60 Largest 2 | 2 2 . . . 2 Hottest 133 | 70 120 . . . 133 Shots Fired 215 | 2 109 . . . 104 Gun 177 | 2 101 . . . 74 Cannon . | . . . . . . Launcher 26 | . 4 . . . 22 Special 12 | . 4 . . . 8 Kinetic 143 | 1 79 . . . 63 Thermal 46 | 1 26 . . . 19 Explosive 26 | . 4 . . . 22 Electromagnetic . | . . . . . . Robot Hit Streak 12 | 1 12 . . . 9 Robot Miss Streak 6 | . 4 . . . 6 Penetration Max 1 | . . . . . 1 Secondary Targets 1 | . . . . . 1 Max Gunslinging Chain 1 | . . . . . 1 Shots Hit Robots 114 | 1 59 . . . 54 Core Hits 99 | 1 30 . . . 68 Critical Kills . | . . . . . . Critical Parts Destroyed . | . . . . . . Critical Strikes 1 | . 1 . . . . Burn 1 | . 1 . . . . Melee Attacks . | . . . . . . Impact . | . . . . . . Slashing . | . . . . . . Piercing . | . . . . . . Sneak Attacks . | . . . . . . Combat Hostiles . | . . . . . . Follow-up Attacks . | . . . . . . Damage Inflicted 4109 | 13 960 . . . 3136 Guns 1392 | 13 513 . . . 866 Cannons . | . . . . . . Explosions 2602 | . 380 . . . 2222 Melee . | . . . . . . Ramming 39 | . 15 . . . 24 Kinetic 1111 | . 324 . . . 787 Thermal 586 | 13 241 . . . 332 Explosive 2235 | . 344 . . . 1891 Electromagnetic 138 | . 36 . . . 102 Impact . | . . . . . . Slashing . | . . . . . . Piercing . | . . . . . . Highest Corruption 16 | . 1 1 1 1 16 Average Corruption 11 | . 1 1 1 1 15 Corruption Purged . | . . . . . . Corruption Blocked . | . . . . . . Effects 50 | . . 1 1 . 48 Message Errors 13 | . . 1 . . 12 Matter Fused 10 | . . . 1 . 9 Heat Flow Errors 3 | . . . . . 3 Energy Discharges 7 | . . . . . 7 Parts Rejected 2 | . . . . . 2 Data Loss (minor) 3 | . . . . . 3 Misfires 4 | . . . . . 4 Alerts 1 | . . . . . 1 Misdirections 5 | . . . . . 5 Weapon Failures 2 | . . . . . 2 Overload Shots . | . . . . . . Overflow Damage 116 | . 6 . . . 110 Projectiles 6 | . 6 . . . . Explosions 110 | . . . . . 110 Melee . | . . . . . . Knockbacks . | . . . . . . Impact . | . . . . . . Kinetic . | . . . . . . Secondary . | . . . . . . Self-Inflicted Damage 301 | . 7 . . . 294 Shots 7 | . . . . . 7 Rammed 2 | . 1 . . . 1 Targets Rammed 4 | . 1 . . . 3 Kicked 2 | . . . . . 2 Crushed . | . . . . . . Highest Temperature 221 | 30 221 . . . 202 Average Temperature 48 | 18 68 . . . 28 Received Heat Transfer 882 | . 144 . . . 738 Siege Activations . | . . . . . . Martial Activations . | . . . . . . Shielding Activations . | . . . . . . Robots Disrupted . | . . . . . . Combat Hostiles . | . . . . . . Robots Corrupted . | . . . . . . Combat Hostiles . | . . . . . . Parts Fried . | . . . . . . Impact Corruptions . | . . . . . . Robots Melted 1 | . 1 . . . . Combat Hostiles 1 | . 1 . . . . Parts Melted . | . . . . . . Heat Transferred 1188 | 37 729 . . . 422 Parts Sabotaged . | . . . . . . Parts Stolen . | . . . . . . Parts Stripped . | . . . . . . Power Chain Reactions . | . . . . . . Alert | -11 -10 -10 -10 -9 -8 ------- Run | Yrd Mat Min Exi Min Mat Maximum Alert Level 2 | . 1 . . . 2 Low Security (%) 86 | 100 88 100 . 100 82 Level 1 12 | . 11 . . . 15 Level 2 1 | . . . . . 2 Level 3 . | . . . . . . Level 4 . | . . . . . . Level 5 . | . . . . . . High Security . | . . . . . . Max Security . | . . . . . . Peak Influence 653 | 5 238 45 . . 653 Initial 45 | . . 45 . . . Average 99 | 1 98 22 . . 113 Influence Increases 1666 | 5 457 . . . 1204 Destroy 0b10 Robot/C 820 | . 260 . . . 560 Destroy 0b10 Robot/NC 75 | 5 20 . . . 50 Destroy Leader 196 | . 52 . . . 144 Successful Hack 28 | . 28 . . . . Disable Machine 135 | . 60 . . . 75 Anti-Garrison Action 150 | . . . . . 150 Destroy Structure 172 | . 7 . . . 165 Lose Combat Pursuer 90 | . 30 . . . 60 Influence Decreases 1067 | 5 341 116 . . 605 Entered New Map 71 | . . 71 . . . Time Decay 825 | 5 331 45 . . 444 Lost Part 171 | . 10 . . . 161 Squads Dispatched 11 | . 2 . . . 9 Investigation 2 | . 1 . . . 1 Extermination . | . . . . . . Reinforcement 6 | . 1 . . . 5 Assault 2 | . . . . . 2 Garrison 1 | . . . . . 1 Intercept . | . . . . . . Searches Triggered . | . . . . . . Construction Impeded 1 | . . . . . 1 Haulers Reinforced . | . . . . . . Active Scanning Responses . | . . . . . . Cargo Convoy Interrupts . | . . . . . . Stealth | -11 -10 -10 -10 -9 -8 --------- Run | Yrd Mat Min Exi Min Mat Distress Signals 5 | . . . . . 5 Communications Jammed . | . . . . . . Distress Signals . | . . . . . . Times Spotted 72 | . 20 . . 3 49 Peak Tracking Total 9 | . 4 . . 4 9 Tactical Retreats 5 | . 2 . . . 3 Traps | -11 -10 -10 -10 -9 -8 ------- Run | Yrd Mat Min Exi Min Mat Traps Triggered 1 | . . . . . 1 Indirectly . | . . . . . . Trap Hack Attempts . | . . . . . . Triggered . | . . . . . . Disarmed . | . . . . . . Reprogrammed . | . . . . . . Reused . | . . . . . . Traps Extracted . | . . . . . . Installed . | . . . . . . Triggered . | . . . . . . Machines | -11 -10 -10 -10 -9 -8 ---------- Run | Yrd Mat Min Exi Min Mat Machines Disabled 10 | . 4 . . . 6 Max in Single Turn 2 | . 1 . . . 2 Garrison Access 1 | . . . . . 1 Machines Repaired . | . . . . . . Machines Dismantled . | . . . . . . Machines Sabotaged . | . . . . . . Overloaded Fab Kills . | . . . . . . Hacking | -11 -10 -10 -10 -9 -8 --------- Run | Yrd Mat Min Exi Min Mat Machines Accessed 12 | . 7 . 2 . 3 Terminals 9 | . 6 . . . 3 Fabricators . | . . . . . . Repair Stations 1 | . 1 . . . . Recycling Units . | . . . . . . Scanalyzers . | . . . . . . Garrison Access . | . . . . . . Total Hacks 40 | . 25 . 9 . 6 Successful 24 | . 14 . 9 . 1 Failed 16 | . 11 . . . 5 Catastrophic 3 | . 2 . . . 1 Database Lockouts . | . . . . . . Manual 16 | . 12 . 1 . 3 Terminals 26 | . 20 . . . 6 Fabricators . | . . . . . . Repair Stations 5 | . 5 . . . . Recycling Units . | . . . . . . Scanalyzers . | . . . . . . Garrison Access . | . . . . . . Terminal Hacks 18 | . 8 . 9 . 1 Record 8 | . . . 8 . . Robot Analysis 4 | . 4 . . . . Prototype ID Bank 3 | . 2 . . . 1 Locate Traps 2 | . 2 . . . . Proto ID Catalog 1 | . . . 1 . . Fabricator Hacks . | . . . . . . Repair Station Hacks 4 | . 4 . . . . Scan Component 2 | . 2 . . . . Repair 2 | . 2 . . . . Recycling Unit Hacks . | . . . . . . Scanalyzer . | . . . . . . Garrison Access Hacks . | . . . . . . Unauthorized Hacks 2 | . 2 . . . . Terminals 2 | . 2 . . . . Botnet 2 | . 2 . . . . Fabricators . | . . . . . . Repair Stations . | . . . . . . Recycling Units . | . . . . . . Scanalyzers . | . . . . . . Garrison Access . | . . . . . . Data Cores Recovered . | . . . . . . Used . | . . . . . . Hacking Detections 6 | . 4 . . . 2 Full Trace Events 2 | . 2 . . . . Feedback Events 1 | . 1 . . . . Corruption 1 | . 1 . . . . Feedback Blocked . | . . . . . . Robot Schematics Acquired . | . . . . . . Robots Built . | . . . . . . Authchips . | . . . . . . Time . | . . . . . . Total Robot Build Rating . | . . . . . . Part Schematics Acquired . | . . . . . . Parts Built . | . . . . . . Authchips . | . . . . . . Time . | . . . . . . Total Part Build Rating . | . . . . . . Parts Repaired 2 | . 2 . . . . Time 52 | . 52 . . . . Parts Recycled . | . . . . . . Recycled Matter . | . . . . . . Retrieved Matter . | . . . . . . Retrieved Components . | . . . . . . Parts Scanalyzed . | . . . . . . Part Schematics Acquired . | . . . . . . Parts Damaged . | . . . . . . Bothacking | -11 -10 -10 -10 -9 -8 ------------ Run | Yrd Mat Min Exi Min Mat Used RIF Installer . | . . . . . . Robots Hacked . | . . . . . . Non-combat . | . . . . . . Combat . | . . . . . . Robot Hacks Applied . | . . . . . . Relay Couplers Released 3 | . . . . . 3 Machine Destruction 3 | . . . . . 3 Fabnet Peak Effective % . | . . . . . . Robots Rewired . | . . . . . . Allies Hacked . | . . . . . . Hacks Repelled . | . . . . . . Allies | -11 -10 -10 -10 -9 -8 -------- Run | Yrd Mat Min Exi Min Mat Total Allies . | . . . . . . Largest Group . | . . . . . . Highest-Rated Group . | . . . . . . Highest-Rated Ally . | . . . . . . Total Orders . | . . . . . . Ally Attacks . | . . . . . . Total Damage . | . . . . . . Kills . | . . . . . . Allies Corrupted . | . . . . . . Allies Melted . | . . . . . . Intel | -11 -10 -10 -10 -9 -8 ------- Run | Yrd Mat Min Exi Min Mat Active Infowar (turns) 1862 | 4 987 . . . 871 Terrain 333 | . . . . . 333 Seismic 1528 | 4 987 . . . 537 Cloaking 55 | . . . . . 55 Robot Analysis Total 4 | . 4 . . . . Derelict Logs Recovered 1 | . . 1 . . . Drone Launches . | . . . . . . Drone Recoveries . | . . . . . . Exploration | -11 -10 -10 -10 -9 -8 ------------- Run | Yrd Mat Min Exi Min Mat Turns Passed 2949 | 60 1055 109 233 54 1438 Spaces Moved 1979 | 42 748 104 229 54 802 Core 8 | 2 . . . . 6 Treads . | . . . . . . Legs 682 | . . . . . 682 Wheels 1289 | 40 748 104 229 54 114 Hover . | . . . . . . Flight . | . . . . . . Fastest Speed 50 | 50 100 105 95 95 95 Average Speed 110 | 97 103 105 100 95 121 Slowest Speed 400 | 100 115 105 105 95 400 Overloaded Moves . | . . . . . . Propulsion Burnouts . | . . . . . . Robots Hopped . | . . . . . . Potential Cave-ins 3 | . . . . . 3 Cave-ins Triggered 1 | . . . . . 1 Exploration Rate (%) 43 | 3 77 50 59 17 52 Regions Visited 5 Branch Regions 3 Pre-discovered Areas 2 | . . 1 1 . . Known Exits Taken 4 | . 1 1 1 1 . Unknown Exits Taken 1 | 1 . . . . . Scrap Searched . | . . . . . . Spaces Dug 11 | . . . . . 11 Terrain Destroyed 234 | . 6 . . . 228 Melee . | . . . . . . Projectile 9 | . 1 . . . 8 AOE 225 | . 5 . . . 220 Terrain Rammed . | . . . . . . Walls Destroyed . | . . . . . . Machines Disabled . | . . . . . . Actions | -11 -10 -10 -10 -9 -8 --------- Run | Yrd Mat Min Exi Min Mat Total 2516 | 55 929 103 231 57 1141 Wait 279 | . 69 . . 2 208 Move 1973 | 41 747 103 228 53 801 Hop . | . . . . . . Pick Up 31 | 6 11 . 1 . 13 Fast Attach 21 | 7 4 . . . 10 Attach 12 | . 1 . . . 11 Detach . | . . . . . . Swap 29 | . 10 . 1 1 17 Drop 26 | . 8 . 1 1 16 Fire 139 | 1 78 . . . 60 Melee . | . . . . . . Ram 2 | . 1 . . . 1 Kick 2 | . . . . . 2 Crush . | . . . . . . Escape Stasis 1 | . . . . . 1 Rewire 1 | . . . . . 1 Trap . | . . . . . . Miscellaneous . | . . . . . . Route ------- -11/Scrapyard -10/Materials (discovered 2 exits: [*Mat] / *Min) -10/Mines -10/Exiles -9/Mines -8/Materials History --------- Turn | Location | Event 24 | -11/Scrapyard | Discovered new exit (range 15) 61 | -11/Scrapyard | Entered Materials 170 | -10/Materials | Discovered new exit (range 11) 244 | -10/Materials | Discovered new exit (range 16) 326 | -10/Materials | Build established: Mutant 819 | -10/Materials | Repaired Wheel 847 | -10/Materials | Repaired Grenade Launcher 957 | -10/Materials | Core integrity fell below 50% 1078 | -10/Materials | Identified exit to Mines 1116 | -10/Materials | Entered Mines 1177 | -10/Mines | Learned location of Zion (-7) 1218 | -10/Mines | Deemed a non-threat by the Exiles lab entrance 1219 | -10/Mines | Discovered new exit (range 5) 1224 | -10/Mines | Identified exit to Exiles 1225 | -10/Mines | Entered Exiles 1251 | -10/Exiles | Met 8R-AWN 1269 | -10/Exiles | Met EX-HEX 1299 | -10/Exiles | Met EX-BIN 1314 | -10/Exiles | Aligned with FarCom system 1315 | -10/Exiles | Given EX-Vault access code 1341 | -10/Exiles | Opened EX-Vault 1363 | -10/Exiles | Found Cloak of Protection 1381 | -10/Exiles | Warned to stay clear of 0b10 Research branches 1412 | -10/Exiles | Met EX-DEC 1447 | -10/Exiles | Discovered new exit (range 14) 1457 | -10/Exiles | Identified exit to Mines 1458 | -10/Exiles | Left Exiles lab with Cloak of Protection 1458 | -10/Exiles | Entered Mines 1487 | -9/Mines | Discovered new exit (range 8) 1498 | -9/Mines | A weapon hastily lodged in a ceiling crevice suddenly fell to the ground 1511 | -9/Mines | Identified exit to Materials 1512 | -9/Mines | Entered Materials 1512 | -8/Materials | Evolved 4 slots: Propulsion x1, Utility x3 2051 | -8/Materials | Crushed by falling debris 2052 | -8/Materials | System corruption reached 10% 2082 | -8/Materials | Lost 4 parts (1p1n1u1w) 2489 | -8/Materials | Build established: Scavenger-Mutant 2888 | -8/Materials | Core integrity fell below 50% 2935 | -8/Materials | Destroyed 10 combat bots 2943 | -8/Materials | Core integrity fell below 20% 2950 | -8/Materials | Destroyed by G-47 Trooper with Particle Gun Last Messages --------------- 02921_ Hacking Suite destroyed. 02922_ U-05 Engineer builds a Wall. 02923_ U-05 Engineer lays Concrete. 02923_ Carbon-fiber Leg destroyed. 02924_ The unstable cave ceiling collapses. 02925_ U-05 Engineer lays Concrete. 02930_ System corrupted: Matter fused (-5). 02930_ Acquired Pulse Rifle. 02933_ The unstable cave ceiling collapses. 02934_ U-05 Engineer lays Concrete. 02935_ K-01 Serf collects debris. 02935_ U-05 Engineer lays Concrete. 02938_ K-01 Serf collects debris. 02939_ U-05 Engineer lays Concrete. 02941_ U-05 Engineer builds a Wall. 02948_ U-05 Engineer lays Concrete. 02949_ U-05 Engineer builds a Wall. 02950_ System corrupted: Energy discharge (-29). 02950_ U-05 Engineer builds a Wall. 02950_ Acquired Adv. Treads. Map ----- +----------------------------------------------------+ | #??????????????????????????????????????? | | #####??????????????????????????????????? | | ####### ### [[#??????????????????????????????????? | | ??????# #?# [[#????? ????????????????????????????? | | ???? ?# #?# #???????? ?????????????????????????? | | ? ????# #?# #??????????? ?????????????????????? | | ??????# #?#= #? ????????? #???????????????????? | | ??????# #?# [#? ??????# #???????????????????? | | ??#???# #?# ####+###???? # ? ????????????????? | | ###### ####+### #???? ###+###?????????????? | | ! #???# ?????????????? | | T #???# ? ??????????? | | ##?## ??????????? | | ################C ### ! ?????????? | | ?? ????????# ##/#### =%! ?????????? | | ???????????# % % * ????????? | | ???????????# " u# "" ]?????????? | | ???????????# u C " ????????? | | ???????????##" # " ??????????? | | ?"??????????#" %%! # "T"???????????? | | ???????????# " [ * """???????????? | | ???????????# " = ####???????????????? | | ??????#?????#" Y Y #??????????????????? | | ???????????# "" "" ##g####?????????????????? | | ???????????## ###Y s !#?????????????????? | | ????????????# # ## ??#@ #?????????????????? | | ?????????????????####???# #?????????????????? | | ????????????????????????#! !]! #?????????????????? | | ??????????????????????#?# !!! #?????????????????? | | ????????????????????????#! ]!! #?????????????????? | | ????????????????????????########?????????????????? | | ?????????????????????????????????????????????????? | | ?????????????????????????????????????????????????? | | ?????????????????????????????????????????????????? | | ?????????????????????????????????????????????????? | | | | | | | | | | | | | | | | | | | | | | | | | | | | | | | +----------------------------------------------------+ Best States ------------- Heat Dissipation 31 Energy Generation 14 Energy Capacity 250 Matter Stores 300 Matter Capacity 300 Sight Range 16 Terrain Scan Range 14 Terrain Scan Density 10 Cloak Strength 5 Armor Coverage 225 Utility Shielding 33 Evasion (%) 55 Offensive Hacking 10 Item Schematics ----------------- None Robot Schematics ------------------ None Fabricated ------------ Nothing Repaired ---------- Wheel | 5% | -10/Materials Grenade Launcher | 66% | -10/Materials Alien Tech Used ----------------- None Achievements -------------- None Challenges ------------ None Game ------ Seed TechPropulsionDatajack Manual? 0 Play Time 00:46:31 Cumulative 72.1 hours Start 2025.09.30 @ 12:59:08 End 2025.09.30 @ 16:09:30 Sessions 5 Manual Loads 0 Difficulty Rogue Special Mode None Game No. 76 Rogue 76 Adventurer 0 Explorer 0 Win Type - Total 0 Types 0/0/0/0/0/0/0/0/0/0 Lore% 20 Gallery% 35 Achievement% 29 Wizard Run 0 Options --------- Layout 1 ASCII 0 Keyboard 1 Movement Numpad Keybinds 0 Fullscreen 1 Font 32/SmallcapsGlow Map View 77x35 Zoom Use 0% Tactical HUD 1 Map Filters NONE Filters NONE Steam 1 RUN: b58d8fd4-df3b-4aca-8dfb-396c41c4480a